[Event "*** SCC Grand Prix: Titled Tuesday Blitz"]
[Site "Chess.com"]
[Date "2020.06.09"]
[Round "5"]
[White "Chessmatus"]
[Black "yobdc"]
[Result "0-1"]
[WhiteElo "2473"]
[BlackElo "2253"]
[TimeControl "180+1"]
[EndTime "9:58:18 PDT"]
[Termination "yobdc won by resignation"]

1. e4 {[%clk 0:02:47.7]} 1... e5 {[%clk 0:02:59.9]} 2. Nf3 {[%clk 0:02:47.4]}
2... Nc6 {[%clk 0:03:00]} 3. Bb5 {[%clk 0:02:45.4]} 3... a6 {[%clk 0:03:00.1]}
4. Ba4 {[%clk 0:02:45.5]} 4... Nf6 {[%clk 0:03:00.5]} 5. O-O {[%clk 0:02:45.7]}
5... Be7 {[%clk 0:03:00.8]} 6. Re1 {[%clk 0:02:44.9]} 6... b5 {[%clk 0:03:01.1]}
7. Bb3 {[%clk 0:02:44.2]} 7... d6 {[%clk 0:03:01.4]} 8. c3 {[%clk 0:02:43.9]}
8... O-O {[%clk 0:03:01.7]} 9. h3 {[%clk 0:02:44]} 9... Na5 {[%clk 0:03:02]} 10.
Bc2 {[%clk 0:02:44]} 10... c5 {[%clk 0:03:02.5]} 11. d4 {[%clk 0:02:44.4]} 11...
Qc7 {[%clk 0:03:02.9]} 12. Nbd2 {[%clk 0:02:44.7]} 12... Nc6 {[%clk 0:03:03.3]}
13. d5 {[%clk 0:02:31.9]} 13... Nd8 {[%clk 0:03:03.3]} 14. a4 {[%clk 0:02:23]}
14... Rb8 {[%clk 0:03:03.2]} 15. Nf1 {[%clk 0:02:16.3]} 15... c4 {[%clk
0:02:54.9]} 16. Ng3 {[%clk 0:02:04]} 16... Ne8 {[%clk 0:02:43.4]} 17. Be3 {[%clk
0:01:53.3]} 17... f6 {[%clk 0:02:35.5]} 18. Qd2 {[%clk 0:01:42.6]} 18... Nf7
{[%clk 0:02:34.9]} 19. axb5 {[%clk 0:01:41.3]} 19... axb5 {[%clk 0:02:34.8]} 20.
Ra7 {[%clk 0:01:41.4]} 20... Rb7 {[%clk 0:02:34.5]} 21. Rea1 {[%clk 0:01:41.3]}
21... g6 {[%clk 0:02:30.8]} 22. b3 {[%clk 0:01:08.7]} 22... cxb3 {[%clk
0:02:19.6]} 23. Bxb3 {[%clk 0:01:08.7]} 23... Ng7 {[%clk 0:02:18.1]} 24. Rxb7
{[%clk 0:00:41.1]} 24... Bxb7 {[%clk 0:02:17.4]} 25. Qd3 {[%clk 0:00:35.4]}
25... Ra8 {[%clk 0:01:48.5]} 26. Rxa8+ {[%clk 0:00:34.3]} 26... Bxa8 {[%clk
0:01:48.6]} 27. Qxb5 {[%clk 0:00:34.2]} 27... Qxc3 {[%clk 0:01:48.5]} 28. Qb8+
{[%clk 0:00:31.8]} 28... Bf8 {[%clk 0:01:47.3]} 29. Nd2 {[%clk 0:00:20.6]} 29...
Qa1+ {[%clk 0:01:27.4]} 30. Kh2 {[%clk 0:00:20.2]} 30... Qa6 {[%clk 0:01:27.2]}
31. Nc4 {[%clk 0:00:18.2]} 31... Qb7 {[%clk 0:01:26.3]} 32. Ba7 {[%clk
0:00:14.3]} 32... h5 {[%clk 0:01:13.5]} 33. Na5 {[%clk 0:00:09.2]} 33... Qxb8
{[%clk 0:00:52]} 34. Bxb8 {[%clk 0:00:09.1]} 34... h4 {[%clk 0:00:51.3]} 35. Ne2
{[%clk 0:00:08]} 35... f5 {[%clk 0:00:46.7]} 36. Ba4 {[%clk 0:00:08.1]} 36...
Be7 {[%clk 0:00:31.3]} 37. Bc6 {[%clk 0:00:08.2]} 37... Bd8 {[%clk 0:00:29.3]}
38. Nc4 {[%clk 0:00:05.4]} 38... Bxc6 {[%clk 0:00:22.4]} 39. dxc6 {[%clk
0:00:06.3]} 39... Ne6 {[%clk 0:00:22.7]} 40. Nc3 {[%clk 0:00:05.9]} 40... Bc7
{[%clk 0:00:18.7]} 41. Bxc7 {[%clk 0:00:05.1]} 41... Nxc7 {[%clk 0:00:19.6]} 42.
Nd5 {[%clk 0:00:05.6]} 42... Ne6 {[%clk 0:00:17.2]} 43. exf5 {[%clk 0:00:04.3]}
43... gxf5 {[%clk 0:00:17.1]} 44. c7 {[%clk 0:00:04.5]} 44... Nxc7 {[%clk
0:00:17]} 45. Nxc7 {[%clk 0:00:05.4]} 45... Kg7 {[%clk 0:00:16.5]} 46. Nd5
{[%clk 0:00:05.8]} 46... Kg6 {[%clk 0:00:16.5]} 47. f3 {[%clk 0:00:06]} 47... f4
{[%clk 0:00:16.8]} 48. Kg1 {[%clk 0:00:06.3]} 48... Kf5 {[%clk 0:00:17.2]} 49.
Kf2 {[%clk 0:00:05.8]} 49... Ke6 {[%clk 0:00:17.6]} 50. Nc7+ {[%clk 0:00:05]}
50... Kd7 {[%clk 0:00:17.6]} 51. Nb5 {[%clk 0:00:05.3]} 51... Kc6 {[%clk
0:00:17.7]} 52. Nc3 {[%clk 0:00:05.2]} 52... Kc5 {[%clk 0:00:18]} 53. Nd2 {[%clk
0:00:05.3]} 53... d5 {[%clk 0:00:17.1]} 54. Ke2 {[%clk 0:00:05.8]} 54... Nd6
{[%clk 0:00:16]} 55. Kd3 {[%clk 0:00:06]} 55... Nf5 {[%clk 0:00:16.2]} 56. Nb3+
{[%clk 0:00:06.2]} 56... Kd6 {[%clk 0:00:15.4]} 57. Nd1 {[%clk 0:00:04.4]} 57...
Kc6 {[%clk 0:00:13.8]} 58. Nc1 {[%clk 0:00:02.6]} 58... Kc5 {[%clk 0:00:13.7]}
59. Ne2 {[%clk 0:00:03]} 59... d4 {[%clk 0:00:13]} 60. Nc1 {[%clk 0:00:02.5]}
60... Ne3 {[%clk 0:00:11.6]} 61. Nxe3 {[%clk 0:00:03.1]} 61... fxe3 {[%clk
0:00:11.8]} 62. Ne2 {[%clk 0:00:03.5]} 62... Kd5 {[%clk 0:00:12.2]} 63. f4
{[%clk 0:00:04]} 63... e4+ {[%clk 0:00:12.5]} 64. Kc2 {[%clk 0:00:03.6]} 64...
d3+ {[%clk 0:00:13]} 65. Kd1 {[%clk 0:00:04]} 65... dxe2+ {[%clk 0:00:13]} 66.
Kxe2 {[%clk 0:00:04.6]} 66... Ke6 {[%clk 0:00:12.2]} 67. Kxe3 {[%clk 0:00:04.6]}
67... Kf5 {[%clk 0:00:12.6]} 68. Ke2 {[%clk 0:00:02.1]} 68... Kxf4 {[%clk
0:00:13.1]} 69. Kf2 {[%clk 0:00:02.7]} 69... e3+ {[%clk 0:00:12.8]} 70. Ke2
{[%clk 0:00:03.2]} 70... Ke4 {[%clk 0:00:13.4]} 71. Ke1 {[%clk 0:00:03.7]} 71...
Kd3 {[%clk 0:00:13.7]} 72. Kd1 {[%clk 0:00:04.2]} 72... e2+ {[%clk 0:00:13.5]}
73. Ke1 {[%clk 0:00:04.6]} 73... Ke3 {[%clk 0:00:13.9]} 0-1

[Event "*** SCC Grand Prix: Titled Tuesday Blitz"]
[Site "Chess.com"]
[Date "2020.06.09"]
[Round "5"]
[White "GukeshDommaraju"]
[Black "Radzio1987"]
[Result "0-1"]
[WhiteElo "2647"]
[BlackElo "2901"]
[TimeControl "180+1"]
[EndTime "9:58:26 PDT"]
[Termination "Radzio1987 won by checkmate"]

1. e4 {[%clk 0:03:00.9]} 1... c6 {[%clk 0:03:00.3]} 2. d4 {[%clk 0:03:00.4]}
2... d5 {[%clk 0:03:01.2]} 3. exd5 {[%clk 0:03:00.5]} 3... cxd5 {[%clk
0:03:02.1]} 4. Bd3 {[%clk 0:03:00.8]} 4... Nc6 {[%clk 0:03:02.4]} 5. c3 {[%clk
0:03:00.3]} 5... e6 {[%clk 0:03:02.8]} 6. Nf3 {[%clk 0:02:56.1]} 6... Bd6 {[%clk
0:03:02.9]} 7. O-O {[%clk 0:02:55.6]} 7... Nge7 {[%clk 0:03:03.4]} 8. Re1 {[%clk
0:02:55.1]} 8... O-O {[%clk 0:03:03.2]} 9. b3 {[%clk 0:02:54.8]} 9... f6 {[%clk
0:03:00.4]} 10. c4 {[%clk 0:02:54.7]} 10... Bd7 {[%clk 0:02:55.6]} 11. Nc3
{[%clk 0:02:46.4]} 11... Rc8 {[%clk 0:02:53.8]} 12. Bb2 {[%clk 0:02:36.1]} 12...
h6 {[%clk 0:02:42.4]} 13. Rc1 {[%clk 0:02:33]} 13... Bf4 {[%clk 0:02:24.7]} 14.
Ra1 {[%clk 0:02:24.4]} 14... Bb8 {[%clk 0:02:17.7]} 15. Qd2 {[%clk 0:01:48.5]}
15... Qc7 {[%clk 0:02:00.2]} 16. Rac1 {[%clk 0:01:35.4]} 16... Qf4 {[%clk
0:01:48]} 17. Qxf4 {[%clk 0:01:25.8]} 17... Bxf4 {[%clk 0:01:48.9]} 18. Rcd1
{[%clk 0:01:26.2]} 18... Rfd8 {[%clk 0:01:45.8]} 19. Ba3 {[%clk 0:01:20.8]}
19... a5 {[%clk 0:01:42.2]} 20. Bc5 {[%clk 0:01:14.8]} 20... Kf7 {[%clk
0:01:31.5]} 21. Na4 {[%clk 0:01:11.6]} 21... Rb8 {[%clk 0:00:46.8]} 22. Bb6
{[%clk 0:01:09.7]} 22... Re8 {[%clk 0:00:37.5]} 23. Nc5 {[%clk 0:01:06.7]} 23...
Bc8 {[%clk 0:00:37.7]} 24. a3 {[%clk 0:00:56.2]} 24... g5 {[%clk 0:00:36.5]} 25.
h3 {[%clk 0:00:38.8]} 25... h5 {[%clk 0:00:36.2]} 26. g3 {[%clk 0:00:35.5]}
26... Bd6 {[%clk 0:00:35.8]} 27. Bf1 {[%clk 0:00:30.7]} 27... Ra8 {[%clk
0:00:31.1]} 28. Rb1 {[%clk 0:00:27.7]} 28... Rg8 {[%clk 0:00:27.8]} 29. cxd5
{[%clk 0:00:22.4]} 29... Nxd5 {[%clk 0:00:27.4]} 30. Bc4 {[%clk 0:00:22.5]}
30... Nxb6 {[%clk 0:00:26.1]} 31. Bxe6+ {[%clk 0:00:21.8]} 31... Bxe6 {[%clk
0:00:26.2]} 32. Nxe6 {[%clk 0:00:22.6]} 32... Bxa3 {[%clk 0:00:22.5]} 33. Nc7
{[%clk 0:00:21.6]} 33... Rac8 {[%clk 0:00:19.7]} 34. Nb5 {[%clk 0:00:21.3]}
34... Bb4 {[%clk 0:00:19.9]} 35. Re2 {[%clk 0:00:21.2]} 35... Nd5 {[%clk
0:00:19.9]} 36. Nd2 {[%clk 0:00:17.7]} 36... Rge8 {[%clk 0:00:17.5]} 37. Ne4
{[%clk 0:00:18]} 37... Kg6 {[%clk 0:00:16.6]} 38. g4 {[%clk 0:00:18.1]} 38...
hxg4 {[%clk 0:00:16.3]} 39. hxg4 {[%clk 0:00:19]} 39... Re6 {[%clk 0:00:14.5]}
40. f3 {[%clk 0:00:15.4]} 40... Nf4 {[%clk 0:00:14.4]} 41. Rh2 {[%clk
0:00:14.9]} 41... Rd8 {[%clk 0:00:12.8]} 42. Kf2 {[%clk 0:00:11.6]} 42... Nxd4
{[%clk 0:00:08.6]} 43. Rbh1 {[%clk 0:00:11.2]} 43... Rxe4 {[%clk 0:00:05.4]} 44.
fxe4 {[%clk 0:00:08.3]} 44... Kf7 {[%clk 0:00:03]} 45. Rh7+ {[%clk 0:00:07.4]}
45... Ke6 {[%clk 0:00:03.3]} 46. Nc7+ {[%clk 0:00:07.8]} 46... Ke5 {[%clk
0:00:03.7]} 47. Rf7 {[%clk 0:00:07.5]} 47... Bd6 {[%clk 0:00:02.8]} 48. Rh6
{[%clk 0:00:05.5]} 48... Bxc7 {[%clk 0:00:02.5]} 49. Rxc7 {[%clk 0:00:05.4]}
49... Nde6 {[%clk 0:00:02.4]} 50. Rxb7 {[%clk 0:00:05.8]} 50... Rd2+ {[%clk
0:00:02.9]} 51. Ke3 {[%clk 0:00:05.6]} 51... Rd3+ {[%clk 0:00:03.3]} 52. Kf2
{[%clk 0:00:05.8]} 52... Kxe4 {[%clk 0:00:03.6]} 53. Rxf6 {[%clk 0:00:05]} 53...
Rd2+ {[%clk 0:00:04.1]} 54. Ke1 {[%clk 0:00:05]} 54... Rb2 {[%clk 0:00:04.1]}
55. Rbf7 {[%clk 0:00:03.8]} 55... Nd4 {[%clk 0:00:03.5]} 56. Re7+ {[%clk
0:00:03.7]} 56... Kd3 {[%clk 0:00:03.9]} 57. Kf1 {[%clk 0:00:04.1]} 57... Nd5
{[%clk 0:00:02.8]} 58. Rd6 {[%clk 0:00:04.1]} 58... Nxe7 {[%clk 0:00:02.7]} 59.
b4 {[%clk 0:00:03.3]} 59... Rb1+ {[%clk 0:00:03.1]} 60. Kf2 {[%clk 0:00:03.2]}
60... axb4 {[%clk 0:00:04]} 61. Rd7 {[%clk 0:00:03.8]} 61... Nc6 {[%clk
0:00:04.3]} 62. Rg7 {[%clk 0:00:04.3]} 62... Rb2+ {[%clk 0:00:04.8]} 63. Kg3
{[%clk 0:00:04.2]} 63... b3 {[%clk 0:00:05.2]} 64. Rxg5 {[%clk 0:00:04.5]} 64...
Rc2 {[%clk 0:00:05.8]} 65. Rd5 {[%clk 0:00:05]} 65... b2 {[%clk 0:00:06.1]} 66.
g5 {[%clk 0:00:05.9]} 66... b1=Q {[%clk 0:00:06.3]} 67. g6 {[%clk 0:00:06.8]}
67... Qg1+ {[%clk 0:00:06.4]} 68. Kf4 {[%clk 0:00:07.7]} 68... Qf2+ {[%clk
0:00:06.3]} 69. Kg5 {[%clk 0:00:07.7]} 69... Qg2+ {[%clk 0:00:06.5]} 70. Kf6
{[%clk 0:00:08.3]} 70... Qxd5 {[%clk 0:00:07.1]} 71. Kg7 {[%clk 0:00:08.9]}
71... Rf2 {[%clk 0:00:07.6]} 72. Kh8 {[%clk 0:00:09.8]} 72... Rh2+ {[%clk
0:00:07]} 73. Kg7 {[%clk 0:00:08.9]} 73... Qe5+ {[%clk 0:00:07.4]} 74. Kf7
{[%clk 0:00:08.9]} 74... Qe6+ {[%clk 0:00:06.8]} 75. Kf8 {[%clk 0:00:08.9]}
75... Qe7+ {[%clk 0:00:06.8]} 76. Kg8 {[%clk 0:00:09.2]} 76... Nf5 {[%clk
0:00:06.9]} 77. g7 {[%clk 0:00:09.4]} 77... Qxg7# {[%clk 0:00:07.4]} 0-1

[Event "*** SCC Grand Prix: Titled Tuesday Blitz"]
[Site "Chess.com"]
[Date "2020.06.09"]
[Round "5"]
[White "RaunakSadhwani2005"]
[Black "CHESSMASTER759"]
[Result "1-0"]
[WhiteElo "2895"]
[BlackElo "2601"]
[TimeControl "180+1"]
[EndTime "9:58:28 PDT"]
[Termination "RaunakSadhwani2005 won by resignation"]

1. e4 {[%clk 0:03:00.9]} 1... d6 {[%clk 0:02:58.4]} 2. d4 {[%clk 0:03:00.9]}
2... Nf6 {[%clk 0:02:59.3]} 3. Nc3 {[%clk 0:03:01.5]} 3... e5 {[%clk 0:02:57.5]}
4. Nf3 {[%clk 0:03:02]} 4... Nbd7 {[%clk 0:02:57.6]} 5. Bc4 {[%clk 0:03:02.2]}
5... Be7 {[%clk 0:02:58.2]} 6. O-O {[%clk 0:03:02.3]} 6... O-O {[%clk
0:02:58.8]} 7. a4 {[%clk 0:03:02.8]} 7... a5 {[%clk 0:02:58.6]} 8. Ba2 {[%clk
0:03:02.3]} 8... c6 {[%clk 0:02:57.7]} 9. Qe2 {[%clk 0:03:01.2]} 9... Qc7 {[%clk
0:02:49.5]} 10. Rd1 {[%clk 0:03:01]} 10... Re8 {[%clk 0:02:46.9]} 11. Ng5 {[%clk
0:02:57.4]} 11... Rf8 {[%clk 0:02:44.3]} 12. Qc4 {[%clk 0:02:34.3]} 12... Nb6
{[%clk 0:02:26.3]} 13. Qb3 {[%clk 0:02:31.9]} 13... d5 {[%clk 0:02:18.4]} 14.
dxe5 {[%clk 0:02:29.5]} 14... Nfd7 {[%clk 0:02:07.1]} 15. exd5 {[%clk
0:02:05.5]} 15... Nc5 {[%clk 0:02:06.1]} 16. Qa3 {[%clk 0:01:51.3]} 16... Qxe5
{[%clk 0:02:01.7]} 17. Nf3 {[%clk 0:01:48.8]} 17... Qc7 {[%clk 0:01:58.8]} 18.
Bg5 {[%clk 0:01:43.2]} 18... Bxg5 {[%clk 0:01:54.7]} 19. Qxc5 {[%clk 0:01:25.5]}
19... Nd7 {[%clk 0:01:51.3]} 20. Qc4 {[%clk 0:01:08.5]} 20... Bf6 {[%clk
0:01:47]} 21. d6 {[%clk 0:01:06.9]} 21... Qb6 {[%clk 0:01:42.3]} 22. Ne4 {[%clk
0:01:05.7]} 22... Bd8 {[%clk 0:01:39.3]} 23. Neg5 {[%clk 0:00:53.1]} 23... Qb4
{[%clk 0:01:36.3]} 24. Re1 {[%clk 0:00:34.2]} 24... Qxc4 {[%clk 0:01:25.5]} 25.
Bxc4 {[%clk 0:00:35.1]} 25... Nb6 {[%clk 0:01:26.1]} 26. Bb3 {[%clk 0:00:35]}
26... Bd7 {[%clk 0:01:21.8]} 27. Ne4 {[%clk 0:00:18.6]} 27... Bf5 {[%clk
0:01:19]} 28. Nc5 {[%clk 0:00:16.6]} 28... Ra7 {[%clk 0:01:15.7]} 29. Ne5 {[%clk
0:00:15.8]} 29... Nd5 {[%clk 0:01:13.5]} 30. Rad1 {[%clk 0:00:11.1]} 30... Bb6
{[%clk 0:01:12.9]} 31. Ncd7 {[%clk 0:00:10.5]} 31... Bd8 {[%clk 0:01:09.2]} 32.
Nxf8 {[%clk 0:00:09.9]} 32... Kxf8 {[%clk 0:01:10.1]} 33. c4 {[%clk 0:00:09.2]}
33... Nf6 {[%clk 0:01:06.7]} 34. c5 {[%clk 0:00:08.7]} 34... Ra8 {[%clk
0:01:03.4]} 35. f3 {[%clk 0:00:08.8]} 35... Rc8 {[%clk 0:00:59.4]} 36. g4 {[%clk
0:00:08.8]} 36... Be6 {[%clk 0:00:55.3]} 37. Bxe6 {[%clk 0:00:07.6]} 37... fxe6
{[%clk 0:00:56.2]} 38. Nc4 {[%clk 0:00:08.1]} 38... Nd7 {[%clk 0:00:48.7]} 39.
Rxe6 {[%clk 0:00:05.2]} 39... Nxc5 {[%clk 0:00:47.6]} 40. Re2 {[%clk 0:00:05.8]}
40... b5 {[%clk 0:00:42.7]} 41. d7 {[%clk 0:00:05.6]} 41... Nxd7 {[%clk
0:00:39.7]} 42. Rxd7 {[%clk 0:00:05.1]} 42... bxc4 {[%clk 0:00:39.7]} 43. Rb7
{[%clk 0:00:05.5]} 43... Bf6 {[%clk 0:00:33.8]} 44. Rc2 {[%clk 0:00:06]} 44...
c3 {[%clk 0:00:30.8]} 45. bxc3 {[%clk 0:00:05.9]} 45... Rd8 {[%clk 0:00:31.3]}
46. Ra7 {[%clk 0:00:05.4]} 46... Rd3 {[%clk 0:00:30.3]} 47. Kg2 {[%clk
0:00:05.3]} 47... Bxc3 {[%clk 0:00:30.3]} 48. Rc7 {[%clk 0:00:05.5]} 48... Bb4
{[%clk 0:00:28.1]} 49. R7xc6 {[%clk 0:00:05.8]} 49... h6 {[%clk 0:00:28.1]} 50.
R6c4 {[%clk 0:00:05.6]} 50... Kg8 {[%clk 0:00:28.1]} 51. Re2 {[%clk 0:00:05.6]}
51... Kh7 {[%clk 0:00:27]} 52. f4 {[%clk 0:00:05.9]} 52... Rd7 {[%clk 0:00:24]}
53. f5 {[%clk 0:00:06.1]} 53... h5 {[%clk 0:00:23.1]} 54. g5 {[%clk 0:00:05.8]}
54... Rd5 {[%clk 0:00:22.2]} 55. Rf4 {[%clk 0:00:05.1]} 55... Bd2 {[%clk
0:00:21]} 56. Rff2 {[%clk 0:00:04.8]} 56... Bxg5 {[%clk 0:00:20.8]} 57. Re4
{[%clk 0:00:05.2]} 57... Bf6 {[%clk 0:00:20.7]} 58. Rf3 {[%clk 0:00:05.5]} 58...
h4 {[%clk 0:00:20.2]} 59. h3 {[%clk 0:00:05.8]} 59... Kh6 {[%clk 0:00:20.5]} 60.
Kf1 {[%clk 0:00:06.2]} 60... Kg5 {[%clk 0:00:20.7]} 61. Rg4+ {[%clk 0:00:06.7]}
61... Kh6 {[%clk 0:00:21.2]} 62. Ke2 {[%clk 0:00:07.5]} 62... Re5+ {[%clk
0:00:20.9]} 63. Kd3 {[%clk 0:00:07.4]} 63... Rd5+ {[%clk 0:00:21.4]} 64. Kc4
{[%clk 0:00:07.9]} 64... Re5 {[%clk 0:00:21.9]} 65. Rd4 {[%clk 0:00:06]} 65...
Re2 {[%clk 0:00:20.6]} 66. Rg4 {[%clk 0:00:06]} 66... Rb2 {[%clk 0:00:19.9]} 67.
Kc5 {[%clk 0:00:05.7]} 67... Rc2+ {[%clk 0:00:19.7]} 68. Kb5 {[%clk 0:00:05.5]}
68... Bc3 {[%clk 0:00:18.5]} 69. Rxh4+ {[%clk 0:00:05.7]} 69... Kg5 {[%clk
0:00:18]} 70. Rg4+ {[%clk 0:00:06.2]} 70... Kf6 {[%clk 0:00:18.6]} 71. Rg6+
{[%clk 0:00:06]} 71... Kf7 {[%clk 0:00:19]} 72. Rc6 {[%clk 0:00:05.7]} 72...
Rb2+ {[%clk 0:00:19.2]} 73. Ka6 {[%clk 0:00:06.1]} 73... Bf6 {[%clk 0:00:19.4]}
74. Kxa5 {[%clk 0:00:05.8]} 74... Ke7 {[%clk 0:00:18.8]} 75. Ka6 {[%clk
0:00:06.1]} 75... Kd7 {[%clk 0:00:19.7]} 76. Re6 {[%clk 0:00:06.3]} 76... Bd8
{[%clk 0:00:19.6]} 77. Rd3+ {[%clk 0:00:05.6]} 77... Kc8 {[%clk 0:00:19.6]} 78.
Rc3+ {[%clk 0:00:05.8]} 78... Kb8 {[%clk 0:00:18]} 79. a5 {[%clk 0:00:04.6]}
79... Bc7 {[%clk 0:00:17.4]} 80. Re8+ {[%clk 0:00:04.6]} 1-0

[Event "*** SCC Grand Prix: Titled Tuesday Blitz"]
[Site "Chess.com"]
[Date "2020.06.09"]
[Round "5"]
[White "Twitch_ElhamBlitz05"]
[Black "DivyaDeshmukh23"]
[Result "1-0"]
[WhiteElo "2734"]
[BlackElo "2455"]
[TimeControl "180+1"]
[EndTime "9:58:50 PDT"]
[Termination "Twitch_ElhamBlitz05 won on time"]

1. e4 {[%clk 0:03:00.9]} 1... c5 {[%clk 0:02:59.6]} 2. Nf3 {[%clk 0:03:00.7]}
2... d6 {[%clk 0:02:59.2]} 3. d4 {[%clk 0:03:00.6]} 3... cxd4 {[%clk 0:03:00.1]}
4. Nxd4 {[%clk 0:03:01.5]} 4... Nf6 {[%clk 0:02:57.6]} 5. f3 {[%clk 0:03:01.3]}
5... Nc6 {[%clk 0:02:58.5]} 6. c4 {[%clk 0:03:00.4]} 6... e5 {[%clk 0:02:55.6]}
7. Nc2 {[%clk 0:03:00.2]} 7... Be6 {[%clk 0:02:53.7]} 8. Nc3 {[%clk 0:02:59.8]}
8... Be7 {[%clk 0:02:39.5]} 9. Be3 {[%clk 0:02:59.4]} 9... Rc8 {[%clk
0:02:39.1]} 10. Qd2 {[%clk 0:02:59.5]} 10... O-O {[%clk 0:02:30]} 11. Be2 {[%clk
0:02:59.6]} 11... Nd7 {[%clk 0:02:18.4]} 12. O-O {[%clk 0:02:58.3]} 12... Re8
{[%clk 0:02:12.7]} 13. Rfd1 {[%clk 0:02:57.9]} 13... Bf8 {[%clk 0:02:11.3]} 14.
Rac1 {[%clk 0:02:57.4]} 14... a5 {[%clk 0:02:09]} 15. Na3 {[%clk 0:02:55.6]}
15... Nc5 {[%clk 0:02:07.2]} 16. Nab5 {[%clk 0:02:54.9]} 16... Qh4 {[%clk
0:01:21.2]} 17. Bf2 {[%clk 0:02:48.8]} 17... Qh5 {[%clk 0:01:17.5]} 18. Nxd6
{[%clk 0:02:40]} 18... Bxd6 {[%clk 0:01:11.8]} 19. Qxd6 {[%clk 0:02:40.9]} 19...
b6 {[%clk 0:01:12.3]} 20. Qd2 {[%clk 0:02:36.5]} 20... Red8 {[%clk 0:00:54.7]}
21. Qe1 {[%clk 0:02:35.5]} 21... Nd4 {[%clk 0:00:51.7]} 22. Nd5 {[%clk
0:02:32.2]} 22... Bxd5 {[%clk 0:00:40]} 23. cxd5 {[%clk 0:02:28.4]} 23... f5
{[%clk 0:00:35.2]} 24. Bxd4 {[%clk 0:02:20.4]} 24... exd4 {[%clk 0:00:33.7]} 25.
Rxd4 {[%clk 0:02:20]} 25... fxe4 {[%clk 0:00:33.4]} 26. fxe4 {[%clk 0:02:20.7]}
26... Qe5 {[%clk 0:00:34]} 27. Rdd1 {[%clk 0:02:19.8]} 27... Re8 {[%clk
0:00:24.7]} 28. Bf3 {[%clk 0:02:17.8]} 28... Qxb2 {[%clk 0:00:23.6]} 29. Qd2
{[%clk 0:02:08.9]} 29... Qf6 {[%clk 0:00:17]} 30. d6 {[%clk 0:02:03.3]} 30...
Rcd8 {[%clk 0:00:16.4]} 31. Qd5+ {[%clk 0:02:02.6]} 31... Kh8 {[%clk 0:00:16.7]}
32. Qc6 {[%clk 0:01:59]} 32... Nd7 {[%clk 0:00:15.7]} 33. Rf1 {[%clk 0:01:51.5]}
33... Ne5 {[%clk 0:00:15.1]} 34. Qxb6 {[%clk 0:01:51.7]} 34... Rxd6 {[%clk
0:00:13.9]} 35. Qxa5 {[%clk 0:01:50.7]} 35... Nxf3+ {[%clk 0:00:13.8]} 36. Rxf3
{[%clk 0:01:49.3]} 36... Qd4+ {[%clk 0:00:13.9]} 37. Kh1 {[%clk 0:01:49.6]}
37... Qxe4 {[%clk 0:00:13.8]} 38. Rcf1 {[%clk 0:01:47.8]} 38... h6 {[%clk
0:00:07]} 39. Qh5 {[%clk 0:01:47]} 39... Rde6 {[%clk 0:00:05.9]} 40. h3 {[%clk
0:01:44.2]} 40... Qc4 {[%clk 0:00:05.8]} 41. Rf8+ {[%clk 0:01:44.1]} 41... Rxf8
{[%clk 0:00:05.9]} 42. Rxf8+ {[%clk 0:01:45]} 42... Kh7 {[%clk 0:00:05.9]} 43.
Qf5+ {[%clk 0:01:41.7]} 43... Rg6 {[%clk 0:00:06]} 44. Qf7 {[%clk 0:01:32.4]}
44... Qxf7 {[%clk 0:00:01.4]} 45. Rxf7 {[%clk 0:01:33.3]} 45... Ra6 {[%clk
0:00:01.8]} 46. Rf2 {[%clk 0:01:32.9]} 46... Ra3 {[%clk 0:00:02.1]} 47. Kg1
{[%clk 0:01:31.3]} 47... Kg6 {[%clk 0:00:03]} 48. Kf1 {[%clk 0:01:31.8]} 48...
Ra4 {[%clk 0:00:02.6]} 49. Ke1 {[%clk 0:01:31.5]} 49... Kg5 {[%clk 0:00:03]} 50.
Kd1 {[%clk 0:01:23.8]} 50... Kh4 {[%clk 0:00:03.4]} 51. Kc1 {[%clk 0:01:24]}
51... Kg3 {[%clk 0:00:03.1]} 52. Re2 {[%clk 0:01:24.4]} 52... g5 {[%clk
0:00:03.3]} 53. Kb2 {[%clk 0:01:24.4]} 53... h5 {[%clk 0:00:03.3]} 54. Kb3
{[%clk 0:01:24.4]} 54... Ra8 {[%clk 0:00:03.9]} 55. a4 {[%clk 0:01:24.8]} 55...
g4 {[%clk 0:00:04.1]} 56. hxg4 {[%clk 0:01:24.5]} 56... hxg4 {[%clk 0:00:05]}
57. Kb4 {[%clk 0:01:23.9]} 57... Rd8 {[%clk 0:00:04.6]} 58. a5 {[%clk
0:01:23.6]} 58... Rd1 {[%clk 0:00:05.1]} 59. a6 {[%clk 0:01:23.1]} 59... Ra1
{[%clk 0:00:04.8]} 60. Kb5 {[%clk 0:01:20.8]} 60... Kh2 {[%clk 0:00:05.1]} 61.
Kb6 {[%clk 0:01:20.1]} 61... g3 {[%clk 0:00:05.5]} 62. a7 {[%clk 0:01:19.9]}
62... Rb1+ {[%clk 0:00:05.3]} 63. Kc7 {[%clk 0:01:19.4]} 63... Ra1 {[%clk
0:00:05.6]} 64. Kb8 {[%clk 0:01:19]} 64... Rb1+ {[%clk 0:00:06.1]} 65. Ka8
{[%clk 0:01:19.4]} 65... Kg1 {[%clk 0:00:05.4]} 66. Rd2 {[%clk 0:01:14.3]} 66...
Rb3 {[%clk 0:00:05.2]} 67. Rc2 {[%clk 0:01:11.3]} 67... Kf1 {[%clk 0:00:04.7]}
68. Rd2 {[%clk 0:01:01.5]} 68... Kg1 {[%clk 0:00:05]} 69. Rd7 {[%clk 0:01:02.4]}
69... Kxg2 {[%clk 0:00:04.8]} 70. Rb7 {[%clk 0:01:03.3]} 70... Ra3 {[%clk
0:00:05.3]} 71. Kb8 {[%clk 0:00:58.7]} 71... Kh2 {[%clk 0:00:05.1]} 72. Rb2+
{[%clk 0:00:57.6]} 72... g2 {[%clk 0:00:05]} 73. a8=Q {[%clk 0:00:38.9]} 73...
Rxa8+ {[%clk 0:00:04.6]} 74. Kxa8 {[%clk 0:00:39.8]} 74... Kh1 {[%clk
0:00:05.5]} 75. Rb8 {[%clk 0:00:37.8]} 75... g1=Q {[%clk 0:00:05.3]} 76. Rh8+
{[%clk 0:00:38.7]} 76... Qh2 {[%clk 0:00:05.1]} 77. Rxh2+ {[%clk 0:00:14.7]} 1-0